bitfinex-derivatives/quotes_ETHF0:USTF0_20230101
["timestamp","ask_amount","ask_price","bid_price","bid_amount"]
[1672582354013,4.0,1195.7,1195.5,1.25374319]
[1672582355066,4.0,1195.7,1195.5,3.1363543]
[1672582355279,4.0,1195.7,1195.5,1.25374319]
[1672582356854,4.0,1195.7,1195.5,3.1363543]
[1672582360218,4.0,1195.7,1195.6,3.5]
[1672582361164,4.0,1195.7,1195.5,3.1363543]
[1672582367468,4.0,1195.7,1195.5,1.25374319]
[1672582367684,8.9986063,1195.7,1195.5,1.25374319]
[1672582375879,4.0,1195.7,1195.5,3.1363543]
[1672582376084,4.0,1195.7,1195.6,3.5]
[1672582383873,4.0,1195.7,1195.5,3.1363543]
[1672582387550,4.0,1195.7,1195.6,3.5]
[1672582391757,4.0,1195.7,1195.5,3.1363543]
[1672582393022,4.0,1195.7,1195.6,3.5]
[1672582397318,4.0,1195.7,1195.6,4.75374319]
[1672582403841,4.0,1195.7,1195.6,6.6363543]
[1672582404150,4.0,1195.7,1195.6,4.75374319]
[1672582420868,4.0,1195.7,1195.6,6.6363543]
[1672582421072,4.0,1195.7,1195.6,4.75374319]
[1672582428323,4.0,1195.7,1195.6,3.5]
[1672582432434,4.0,1195.7,1195.6,4.75374319]
[1672582453462,4.0,1195.7,1195.5,3.1363543]
[1672582453673,4.0,1195.7,1195.5,1.25374319]
[1672582480068,4.0,1195.7,1195.6,3.5]
[1672582480383,4.0,1195.7,1195.6,4.75374319]
[1672582483211,4.0,1195.7,1195.5,3.1363543]
[1672582483425,4.0,1195.7,1195.5,1.25374319]
[1672582496893,4.0,1195.7,1195.5,1.24931163]
[1672582497521,8.9986063,1195.7,1195.5,1.24931163]
[1672582500365,4.0,1195.7,1195.5,1.24931163]
[1672582501526,8.9986063,1195.7,1195.5,1.24931163]
[1672582506883,4.0,1195.7,1195.5,1.24931163]
[1672582508884,4.0,1195.7,1195.5,3.13192274]
[1672582509084,4.0,1195.7,1195.6,3.5]
[1672582547341,4.0,1195.7,1195.6,5.38261111]
[1672582554594,4.0,1195.7,1195.6,3.5]
[1672582555123,4.0,1195.7,1195.6,5.38261111]
[1672582555326,4.0,1195.7,1195.6,3.5]
[1672582556270,4.0,1195.7,1195.6,5.38261111]
[1672582557534,4.0,1195.7,1195.6,3.5]
[1672582586360,4.0,1195.7,1195.6,5.38261111]
[1672582586991,3.5,1195.8,1195.6,5.38261111]
[1672582587202,4.0,1195.8,1195.6,5.38261111]
[1672582599184,4.0,1195.8,1195.6,3.5]
[1672582599386,4.0,1195.8,1195.6,5.38261111]
[1672582616847,4.0,1195.8,1195.6,6.63717161]
[1672582620002,4.0,1195.8,1195.7,1.2545605]
[1672582620529,4.0,1195.8,1195.6,4.7545605]
[1672582620734,4.0,1195.8,1195.5,3.13717161]
[1672582621046,4.0,1195.8,1195.6,3.5]
[1672582621258,8.9986063,1195.8,1195.6,3.5]
[1672582635976,4.0,1195.8,1195.6,3.5]
[1672582644387,8.9986063,1195.8,1195.6,3.5]
[1672582657415,4.0,1195.8,1195.6,3.5]
[1672582657938,4.0,1195.8,1195.6,4.7545605]
[1672582658143,8.9986063,1195.8,1195.6,4.7545605]
[1672582658778,4.0,1195.8,1195.6,4.7545605]
[1672582659938,8.9986063,1195.8,1195.6,4.7545605]
[1672582662352,4.0,1195.8,1195.6,4.7545605]
[1672582662875,4.0,1195.8,1195.6,6.63717161]
[1672582664139,4.0,1195.8,1195.6,4.7545605]
[1672582664769,8.9986063,1195.8,1195.6,4.7545605]
[1672582682516,8.9986063,1195.8,1195.6,3.5]
[1672582684627,8.9986063,1195.8,1195.6,4.7545605]
[1672582695449,8.9986063,1195.8,1195.6,3.5]
[1672582695658,8.9986063,1195.8,1195.6,4.7545605]
[1672582701961,4.0,1195.8,1195.6,6.63717161]
[1672582717106,4.0,1195.8,1195.6,4.7545605]
[1672582717304,4.0,1195.8,1195.6,6.63717161]
[1672582718259,4.0,1195.8,1195.6,4.7545605]
[1672582720680,4.0,1195.8,1195.6,1.2545605]
[1672582720884,4.0,1195.8,1195.5,3.13717161]
[1672582721091,4.0,1195.8,1195.6,3.5]
[1672582721303,8.9986063,1195.8,1195.6,3.5]
[1672582728877,4.0,1195.8,1195.6,4.7545605]
[1672582730240,4.0,1195.8,1195.6,6.63717161]
[1672582732134,4.0,1195.8,1195.6,4.7545605]
[1672582738141,4.0,1195.8,1195.6,6.63717161]
[1672582740872,4.0,1195.8,1195.6,4.7545605]
[1672582741495,8.9986063,1195.8,1195.6,4.7545605]
[1672582742766,8.9986063,1195.8,1195.6,3.5]
[1672582745294,4.0,1195.8,1195.6,4.7545605]
[1672582748243,4.0,1195.8,1195.6,6.63717161]
[1672582748549,4.0,1195.8,1195.6,4.7545605]
[1672582751190,4.0,1195.8,1195.6,6.63717161]
[1672582755374,4.0,1195.8,1195.6,4.7545605]
[1672582762527,4.0,1195.8,1195.6,6.63717161]
[1672582762939,4.0,1195.8,1195.6,4.7545605]
[1672582763155,4.0,1195.8,1195.6,6.63717161]
[1672582763477,8.4986063,1195.9,1195.6,6.63717161]
[1672582763669,3.5,1195.9,1195.6,6.63717161]
[1672582763884,4.0,1195.9,1195.7,1.2545605]
[1672582779241,4.0,1195.9,1195.6,6.63717161]
[1672582782399,4.0,1195.9,1195.7,1.2545605]
[1672582787652,4.0,1195.9,1195.6,6.63717161]
[1672582787862,8.9986063,1195.9,1195.6,4.7545605]
[1672582788074,8.9986063,1195.9,1195.6,6.63717161]
[1672582797851,8.9986063,1195.9,1195.7,1.2545605]
[1672582798571,8.9986063,1195.9,1195.6,6.63717161]
[1672582799950,8.9986063,1195.9,1195.7,1.2545605]
[1672582803834,8.9986063,1195.9,1195.6,6.63717161]
[1672582804047,8.9986063,1195.9,1195.7,1.2545605]
[1672582804355,8.9986063,1195.9,1195.6,6.63717161]
[1672582804573,8.9986063,1195.9,1195.7,1.2545605]
[1672582806681,8.9986063,1195.9,1195.6,6.63717161]
[1672582806990,8.9986063,1195.9,1195.7,1.2545605]
[1672582810984,4.0,1195.9,1195.7,1.2545605]
[1672582816969,4.0,1195.9,1195.6,6.63717161]
[1672582817396,8.9986063,1195.9,1195.6,6.63717161]
[1672582818873,8.9986063,1195.9,1195.7,1.2545605]
[1672582819084,8.9986063,1195.9,1195.6,6.63717161]
[1672582820024,8.9986063,1195.9,1195.7,1.2545605]
[1672582820346,8.9986063,1195.9,1195.6,6.63717161]
[1672582820871,8.9986063,1195.9,1195.7,1.2545605]
[1672582821390,8.9986063,1195.9,1195.6,6.63717161]
[1672582822657,8.9986063,1195.9,1195.7,1.2545605]
[1672582823708,8.9986063,1195.9,1195.6,6.63717161]
[1672582823921,8.9986063,1195.9,1195.7,1.2545605]
[1672582839478,4.0,1195.9,1195.7,1.2545605]
[1672582840433,4.0,1195.9,1195.8,4.0]
[1672582960374,4.0,1195.9,1195.8,5.25238921]
[1672582972153,4.0,1195.9,1195.8,4.0]
[1672582974574,4.0,1195.9,1195.8,5.25238921]
[1672583004433,4.0,1195.9,1195.8,7.13500032]
[1672583004648,4.0,1195.9,1195.8,5.25238921]
[1672583054166,4.0,1195.9,1195.8,1.25238921]
[1672583054361,0.00536416,1195.8,1195.6,6.63500032]
[1672583054781,0.00536416,1195.8,1195.6,4.75238921]
[1672583054994,0.00536416,1195.8,1195.6,5.25238921]
[1672583055520,0.00536416,1195.8,1195.6,4.0]
[1672583059513,0.00536416,1195.8,1195.6,3.99761517]
[1672583077079,0.00536416,1195.8,1195.6,5.25000438]
[1672583077387,0.00536416,1195.8,1195.6,3.99761517]
[1672583079177,0.00536416,1195.8,1195.6,5.25000438]
[1672583080015,0.00536416,1195.8,1195.6,3.99761517]
[1672583081496,0.00536416,1195.8,1195.6,5.25000438]
[1672583082340,0.00536416,1195.8,1195.6,3.99761517]
[1672583082651,0.00536416,1195.8,1195.6,5.25000438]
[1672583085187,0.00536416,1195.8,1195.6,3.99761517]
[1672583085802,0.00536416,1195.8,1195.6,5.25000438]
[1672583093478,0.00536416,1195.8,1195.6,7.13261549]
[1672583101260,0.00536416,1195.8,1195.6,5.25000438]
[1672583101470,0.00536416,1195.8,1195.6,7.13261549]
[1672583103470,5.00397046,1195.8,1195.6,7.13261549]
[1672583103685,0.00536416,1195.8,1195.6,7.13261549]
[1672583119760,0.00536416,1195.8,1195.6,5.25000438]
[1672583120486,5.00397046,1195.8,1195.6,5.25000438]
[1672583123014,0.00536416,1195.8,1195.6,7.13261549]
[1672583126056,0.00536416,1195.8,1195.6,5.25000438]
[1672583126588,5.00397046,1195.8,1195.6,5.25000438]
[1672583127320,0.00536416,1195.8,1195.6,7.13261549]
[1672583137202,0.00536416,1195.8,1195.6,5.25000438]
[1672583137729,5.00397046,1195.8,1195.6,5.25000438]
[1672583143510,5.00397046,1195.8,1195.6,3.99068762]
[1672583149071,3.5,1195.7,1195.6,3.99068762]
[1672583149603,4.0,1195.7,1195.6,3.99068762]
[1672583202708,4.0,1195.7,1195.6,5.24307683]
[1672583213114,4.0,1195.7,1195.6,3.99068762]
[1672583220460,4.0,1195.7,1195.6,5.24307683]
[1672583223090,4.0,1195.7,1195.6,5.23975424]
[1672583227081,4.9986063,1195.8,1195.6,5.23975424]
[1672583227393,14.11155362,1195.9,1195.6,7.12236535]
[1672583227819,8.4986063,1195.9,1195.6,7.12236535]
[1672583230866,3.5,1195.9,1195.6,7.12236535]
[1672583231070,4.0,1195.9,1195.6,7.12236535]
[1672583231390,8.9986063,1195.9,1195.6,7.12236535]
[1672583231704,4.0,1195.9,1195.6,7.12236535]
[1672583252727,4.0,1195.9,1195.6,5.23975424]
[1672583255667,4.0,1195.9,1195.6,7.12236535]
[1672583260826,8.9986063,1195.9,1195.6,7.12236535]
[1672583264083,8.9986063,1195.9,1195.7,1.25238921]
[1672583264398,8.9986063,1195.9,1195.6,7.12236535]
[1672583264713,8.9986063,1195.9,1195.7,1.25238921]
[1672583265133,8.9986063,1195.9,1195.6,7.12236535]
[1672583265345,8.9986063,1195.9,1195.7,1.25238921]
[1672583281533,8.9986063,1195.9,1195.6,7.12236535]
[1672583285636,8.9986063,1195.9,1195.7,1.25238921]
[1672583287320,8.9986063,1195.9,1195.6,7.12236535]
[1672583288368,8.9986063,1195.9,1195.7,1.25238921]
[1672583290356,8.9986063,1195.9,1195.6,7.12236535]
[1672583290884,8.9986063,1195.9,1195.7,1.25238921]
[1672583292568,8.9986063,1195.9,1195.6,7.12236535]
[1672583292773,8.9986063,1195.9,1195.7,1.25238921]
[1672583294879,8.9986063,1195.9,1195.6,7.12236535]
[1672583295616,8.9986063,1195.9,1195.7,1.25238921]
[1672583296245,8.9986063,1195.9,1195.6,7.12236535]
[1672583296456,8.9986063,1195.9,1195.7,1.25238921]
[1672583296977,8.9986063,1195.9,1195.6,7.12236535]
[1672583301923,8.9986063,1195.9,1195.7,1.25238921]
[1672583302447,8.9986063,1195.9,1195.6,7.12236535]
[1672583306874,8.9986063,1195.9,1195.7,1.25238921]
[1672583322104,4.0,1195.9,1195.7,1.25238921]
[1672583331882,4.0,1195.9,1195.7,3.13500032]
[1672583332092,4.0,1195.9,1195.7,1.25238921]
[1672583334830,4.0,1195.9,1195.7,3.13500032]
[1672583335241,4.9986063,1196.0,1195.7,3.13500032]
[1672583335558,4.0,1195.9,1195.8,3.5]
[1672583355853,4.0,1195.9,1195.8,4.75238921]
[1672583356385,4.0,1195.9,1195.8,3.5]
[1672583364797,4.0,1195.9,1195.8,4.75238921]
[1672583370715,3.5,1196.0,1195.8,4.75238921]
[1672583370906,4.0,1196.0,1195.8,4.75238921]
[1672583371326,8.9986063,1196.0,1195.8,4.75238921]
[1672583376280,4.0,1196.0,1195.8,4.75238921]
[1672583377688,4.0,1196.0,1195.8,4.74698439]
[1672583380902,4.0,1196.0,1195.8,6.6295955]
[1672583381736,4.0,1196.0,1195.8,4.74698439]
[1672583382153,4.0,1196.0,1195.8,6.6295955]
[1672583382469,4.0,1196.0,1195.8,4.74698439]
[1672583386462,4.0,1196.0,1195.8,6.6295955]
[1672583388552,4.9986063,1196.1,1195.8,6.6295955]
[1672583388766,4.9986063,1196.2,1195.9,1.25238921]
[1672583389079,4.0,1196.1,1196.0,4.0]
[1672583389493,4.0,1196.1,1196.0,5.25238921]
[1672583389698,4.0,1196.1,1196.0,4.0]
[1672583390118,4.0,1196.1,1195.7,3.76281086]
[1672583390332,4.39022019,1195.9,1195.7,5.25238921]
[1672583390753,3.5,1195.8,1195.7,4.0]
[1672583390962,4.0,1195.8,1195.7,4.0]
[1672583392753,4.0,1195.8,1195.7,5.25238921]
[1672583393597,4.0,1195.8,1195.7,4.0]
[1672583400947,4.0,1195.8,1195.7,5.25238921]
[1672583403574,4.0,1195.8,1195.7,4.0]
[1672583410821,4.0,1195.8,1195.7,5.25238921]
[1672583411030,4.0,1195.8,1195.7,4.0]
[1672583422392,4.0,1195.8,1195.7,5.25238921]
[1672583425646,4.0,1195.8,1195.7,4.0]
[1672583426594,8.39022019,1195.8,1195.7,4.0]
[1672583427547,4.0,1195.8,1195.7,4.0]
[1672583428384,8.39022019,1195.8,1195.7,5.25238921]
[1672583431744,4.0,1195.8,1195.7,5.25238921]
[1672583431956,8.39022019,1195.8,1195.7,5.25238921]
[1672583432909,4.0,1195.8,1195.7,5.25238921]
[1672583443833,4.0,1195.8,1195.7,5.24785692]
[1672583447618,8.39022019,1195.8,1195.7,5.24785692]
[1672583460967,8.39022019,1195.8,1195.7,3.99546771]
[1672583471893,4.0,1195.8,1195.7,3.99546771]
[1672583472419,8.39022019,1195.8,1195.7,3.99546771]
[1672583477150,8.39022019,1195.8,1195.6,3.13500032]
[1672583477362,8.39022019,1195.8,1195.6,5.25238921]
[1672583477568,8.39022019,1195.8,1195.7,3.5]
[1672583499958,8.39022019,1195.8,1195.7,4.75238921]
[1672583500484,8.39022019,1195.8,1195.7,3.5]
[1672583513836,8.39022019,1195.8,1195.7,4.75238921]
[1672583516255,8.39022019,1195.8,1195.7,3.5]
[1672583516569,8.39022019,1195.8,1195.7,4.75238921]
[1672583517517,8.39022019,1195.8,1195.7,3.5]
[1672583518253,8.39022019,1195.8,1195.7,3.49777612]
[1672583529716,8.39022019,1195.8,1195.7,4.75016533]
[1672583535280,8.39022019,1195.8,1195.7,3.49777612]
[1672583536127,8.39022019,1195.8,1195.7,4.75016533]
[1672583544744,8.39022019,1195.8,1195.7,3.49777612]
[1672583545690,8.39022019,1195.8,1195.7,4.75016533]
[1672583553364,4.0,1195.8,1195.7,4.75016533]
[1672583560513,12.88882649,1195.9,1195.7,4.75016533]
[1672583560721,7.89022019,1195.9,1195.7,6.63277644]
[1672583564719,7.89022019,1195.9,1195.7,4.75016533]
[1672583571755,12.88882649,1195.9,1195.7,3.49777612]
[1672583571968,12.88882649,1195.9,1195.7,4.75016533]
[1672583572175,12.88882649,1195.9,1195.7,3.49777612]
[1672583572386,12.88882649,1195.9,1195.7,4.75016533]
[1672583572592,12.88882649,1195.9,1195.7,3.49777612]
[1672583573863,4.39022019,1195.8,1195.7,3.49777612]
[1672583577653,12.88882649,1195.9,1195.7,3.49777612]
[1672583582278,12.88882649,1195.9,1195.7,4.75016533]
[1672583582485,7.89022019,1195.9,1195.7,4.75016533]
[1672583587209,3.5,1195.9,1195.7,6.63277644]
[1672583587425,4.0,1195.9,1195.8,1.25238921]
[1672583588795,4.0,1195.9,1195.7,6.63277644]
[1672583595315,4.0,1195.9,1195.7,4.75016533]
[1672583595630,8.39022019,1195.9,1195.7,4.75016533]
[1672583597415,8.39022019,1195.9,1195.7,3.49416424]
[1672583597628,13.38882649,1195.9,1195.7,3.49416424]
[1672583597939,8.39022019,1195.9,1195.7,3.49416424]
[1672583619065,13.38882649,1195.9,1195.7,3.49416424]
[1672583619803,8.39022019,1195.9,1195.7,4.74655345]
[1672583631152,8.39022019,1195.9,1195.7,6.62916456]
[1672583631361,8.39022019,1195.9,1195.7,4.74655345]
[1672583643563,8.39022019,1195.9,1195.7,6.62916456]
[1672583643970,8.39022019,1195.9,1195.7,4.74655345]
[1672583645033,8.39022019,1195.9,1195.7,6.62916456]
[1672583665109,8.39022019,1195.9,1195.8,1.25238921]
[1672583665317,4.0,1195.9,1195.8,1.25238921]
[1672583672254,4.0,1195.9,1195.7,6.62916456]
[1672583672674,8.39022019,1195.9,1195.7,6.62916456]
[1672583673203,4.0,1195.9,1195.7,6.62916456]
[1672583674146,8.39022019,1195.9,1195.7,6.62916456]
[1672583674566,4.0,1195.9,1195.7,6.62916456]
[1672583678134,4.39022019,1196.0,1195.8,1.25238921]
[1672583678554,4.0,1195.9,1195.8,1.25238921]
[1672583694326,4.0,1195.9,1195.7,6.62916456]
[1672583696326,4.0,1195.9,1195.8,1.25238921]
[1672583700946,4.0,1195.9,1195.7,6.62916456]
[1672583701477,4.0,1195.9,1195.8,1.25238921]
[1672583714828,8.39022019,1195.9,1195.8,1.25238921]
[1672583717352,4.0,1195.9,1195.8,1.25238921]
[1672583718718,8.39022019,1195.9,1195.7,4.74655345]
[1672583722187,8.39022019,1195.9,1195.7,3.49416424]
[1672583722396,8.39022019,1195.9,1195.7,3.48755386]
[1672583724080,13.38882649,1195.9,1195.7,3.48755386]
[1672583724819,8.39022019,1195.9,1195.7,3.48755386]
[1672583729975,4.39022019,1195.8,1195.7,3.48755386]
[1672583730913,13.38882649,1195.9,1195.7,3.48755386]
[1672583734810,8.39022019,1195.9,1195.7,3.48755386]
[1672583744258,13.38882649,1195.9,1195.7,3.48755386]
[1672583744477,4.39022019,1195.8,1195.7,3.48755386]
[1672583754042,4.39022019,1195.8,1195.6,5.25238921]
[1672583754355,3.5,1195.7,1195.6,5.25238921]
[1672583791031,7.89022019,1195.7,1195.6,5.25238921]
[1672583791973,7.89022019,1195.7,1195.6,5.24748498]
[1672583793862,7.89022019,1195.7,1195.6,1.25238921]
[1672583794178,7.89307143,1195.7,1195.5,5.25238921]
[1672583798385,7.89307143,1195.7,1195.5,4.0]
[1672583811121,7.88678957,1195.7,1195.5,4.0]
[1672583822259,7.88678957,1195.7,1195.5,5.25238921]
[1672583833406,12.90587254,1195.7,1195.5,5.25238921]
[1672583837610,4.39307143,1195.6,1195.5,5.25238921]
[1672583838453,12.90587254,1195.7,1195.5,5.25238921]
[1672583840866,12.90587254,1195.7,1195.5,4.0]
[1672583841076,12.90587254,1195.7,1195.4,3.13500032]
[1672583841287,4.39307143,1195.6,1195.4,7.13500032]
[1672583841599,4.0,1195.5,1195.4,5.25238921]
[1672583842230,4.0,1195.5,1195.4,7.13500032]
[1672583856015,4.0,1195.5,1195.4,5.25238921]
[1672583863057,4.0,1195.5,1195.4,7.13500032]
[1672583863266,4.0,1195.5,1195.4,5.25238921]
[1672583867057,4.0,1195.5,1195.4,7.13500032]
[1672583867585,4.0,1195.5,1195.4,5.25238921]
[1672583871578,4.0,1195.5,1195.4,1.25238921]
[1672583871788,8.39307143,1195.5,1195.3,3.13500032]
[1672583872101,8.39307143,1195.5,1195.3,7.13500032]
[1672583872626,4.0,1195.5,1195.4,4.75238921]
[1672583873457,8.39307143,1195.5,1195.4,3.5]
[1672583873677,4.0,1195.5,1195.4,3.5]
[1672583873880,8.39307143,1195.5,1195.4,3.5]
[1672583875465,4.0,1195.5,1195.4,4.75238921]
[1672583875664,4.0,1195.5,1195.4,3.5]
[1672583875875,8.39307143,1195.5,1195.4,3.5]
[1672583878630,4.0,1195.5,1195.4,3.5]
[1672583881674,4.0,1195.5,1195.4,4.75238921]
[1672583881885,4.0,1195.5,1195.4,1.25238921]
[1672583882520,4.0,1195.5,1195.3,7.13500032]
[1672583882734,4.0,1195.5,1195.4,3.5]
[1672583883675,8.39307143,1195.5,1195.4,3.49694079]
[1672583884402,4.0,1195.5,1195.4,3.49694079]
[1672583884612,8.39307143,1195.5,1195.4,3.49694079]
[1672583884822,4.0,1195.5,1195.4,3.49694079]
[1672583891867,8.39307143,1195.5,1195.4,3.49694079]
[1672583893339,4.0,1195.5,1195.3,5.25238921]
[1672583893554,8.39307143,1195.5,1195.4,3.5]
[1672583898706,8.39307143,1195.5,1195.3,1.25238921]
[1672583899024,4.39307143,1195.4,1195.2,1.25238921]
[1672583899228,3.5,1195.3,1195.2,1.25238921]
[1672583899436,3.5,1195.3,1195.1,7.13500032]
[1672583899644,3.5,1195.3,1195.2,3.5]
[1672583899861,3.5,1195.3,1195.1,3.13500032]
[1672583900074,7.89307143,1195.3,1195.0,1.25238921]
[1672583900600,12.9121544,1195.3,1195.0,1.25238921]
[1672583900917,7.89307143,1195.3,1195.0,6.63500032]
[1672583901332,7.89307143,1195.3,1195.0,4.75238921]
[1672583901966,3.5,1195.3,1195.0,6.63500032]
[1672583902177,7.89307143,1195.3,1195.0,4.75238921]
[1672583903123,3.5,1195.3,1195.0,4.75238921]
[1672583909109,3.5,1195.3,1195.0,3.5]
[1672583909844,7.89307143,1195.3,1195.0,3.5]
[1672583910263,3.5,1195.3,1195.0,3.5]
[1672583925230,3.5,1195.3,1195.0,4.75238921]
[1672583927974,3.5,1195.3,1195.0,6.63500032]
[1672583931220,3.5,1195.3,1195.1,1.25238921]
[1672583937218,3.5,1195.3,1195.1,3.13500032]
[1672583941115,3.5,1195.3,1195.1,1.25238921]
[1672583941323,7.89307143,1195.3,1195.1,1.25238921]
[1672583950328,7.89307143,1195.3,1195.1,1.2493362]
[1672583957283,7.89307143,1195.3,1195.1,3.13194731]
[1672583958429,7.89307143,1195.3,1195.1,1.2493362]
[1672583959058,7.89307143,1195.3,1195.1,3.13194731]
[1672583960323,7.89051144,1195.3,1195.1,3.13194731]
[1672583965372,7.89051144,1195.3,1195.1,1.88261111]
[1672583981144,7.89051144,1195.3,1195.0,5.38261111]
[1672583981664,7.89051144,1195.3,1195.1,1.88261111]
[1672583983770,7.89051144,1195.3,1195.0,5.38261111]
[1672583983970,7.89051144,1195.3,1195.1,1.88261111]
[1672583984181,7.89051144,1195.3,1195.0,3.5]
[1672583984182,7.89051144,1195.3,1195.0,5.38261111]
[1672583984504,7.89051144,1195.3,1195.1,1.88261111]
[1672583985555,7.89051144,1195.3,1195.0,5.38261111]
[1672583986397,7.89051144,1195.3,1195.1,1.88261111]
[1672583987020,7.89051144,1195.3,1195.0,5.38261111]
[1672583989232,7.89051144,1195.3,1195.1,1.88261111]
[1672583991017,7.89051144,1195.3,1195.0,5.38261111]
[1672583991964,12.90959441,1195.3,1195.0,5.38261111]
[1672583992170,4.39307143,1195.2,1195.0,5.38261111]
[1672583995747,12.90959441,1195.3,1195.0,5.38261111]
[1672583997010,4.39307143,1195.2,1195.0,5.38261111]
[1672583997210,12.90959441,1195.3,1195.0,5.38261111]
[1672583997744,7.89051144,1195.3,1195.0,7.89286981]
[1672583997954,7.89051144,1195.3,1195.0,5.38261111]
[1672584001868,12.90959441,1195.3,1195.0,5.38261111]
[1672584003231,4.39307143,1195.2,1195.0,5.38261111]
[1672584003438,12.90959441,1195.3,1195.0,5.38261111]
[1672584005010,7.89051144,1195.3,1195.0,5.38261111]
[1672584007625,12.90959441,1195.3,1195.0,5.38261111]
[1672584008051,7.89051144,1195.3,1195.0,5.38261111]
[1672584010252,12.90959441,1195.3,1195.0,5.38261111]
[1672584011086,4.39307143,1195.2,1195.0,5.38261111]
[1672584011727,12.90959441,1195.3,1195.0,5.38261111]
[1672584012137,4.39307143,1195.2,1195.0,5.38261111]
[1672584012451,12.90959441,1195.3,1195.0,5.38261111]
[1672584012983,4.39307143,1195.2,1195.0,5.38261111]
[1672584021598,4.39307143,1195.2,1195.0,1.88261111]
[1672584021915,4.39307143,1195.2,1194.9,5.88261111]
[1672584022124,4.0,1195.1,1194.9,5.88261111]
[1672584022862,4.0,1195.1,1194.9,8.39286981]
[1672584025801,4.0,1195.1,1195.0,1.88261111]
[1672584026008,4.0,1195.1,1194.9,5.88261111]
[1672584035473,4.0,1195.1,1194.9,5.87871648]
[1672584043990,4.0,1195.1,1194.9,8.38897518]
[1672584044512,4.0,1195.1,1194.9,5.87871648]
[1672584046087,4.0,1195.1,1194.9,8.38897518]
[1672584046719,4.0,1195.1,1194.9,5.87871648]
[1672584049663,4.0,1195.1,1194.9,8.38897518]
[1672584049878,4.0,1195.1,1194.9,5.87871648]
[1672584050511,4.0,1195.1,1194.9,8.38897518]
[1672584050723,4.0,1195.1,1194.9,5.87871648]
[1672584052197,4.0,1195.1,1194.9,8.38897518]
[1672584053559,3.99684033,1195.1,1194.9,8.38897518]
[1672584058184,8.38991176,1195.1,1194.9,5.87871648]
[1672584059551,3.99684033,1195.1,1194.9,5.87871648]
[1672584059752,3.99684033,1195.1,1194.9,8.38897518]
[1672584059957,3.99684033,1195.1,1195.0,1.88261111]
[1672584070380,3.99684033,1195.1,1195.0,1.25488673]
[1672584078890,3.99684033,1195.1,1194.9,7.13360321]
[1672584080363,8.38991176,1195.1,1194.9,5.2509921]
[1672584080573,8.38991176,1195.1,1194.9,7.13360321]
[1672584083103,3.99684033,1195.1,1194.9,7.13360321]
[1672584084050,8.38991176,1195.1,1194.9,7.13360321]
[1672584088680,3.99684033,1195.1,1194.9,7.13360321]
[1672584089516,8.38991176,1195.1,1194.9,7.13360321]
[1672584089941,3.99684033,1195.1,1194.9,7.13360321]
[1672584091517,8.38991176,1195.1,1194.9,7.13360321]
[1672584093093,3.99684033,1195.1,1194.9,7.13360321]
[1672584093407,8.38991176,1195.1,1194.9,7.13360321]
[1672584094045,3.99684033,1195.1,1194.9,7.13360321]
[1672584097933,3.99684033,1195.1,1195.0,1.25488673]
[1672584116006,3.99684033,1195.1,1194.9,7.13360321]
[1672584116531,8.38991176,1195.1,1194.9,7.13360321]
[1672584122310,8.38991176,1195.1,1195.0,1.25488673]
[1672584122630,8.38991176,1195.1,1194.9,7.13360321]
[1672584131039,8.38991176,1195.1,1194.9,7.12921215]
[1672584144910,8.38991176,1195.1,1195.0,1.25488673]
[1672584145115,8.38991176,1195.1,1194.9,7.12921215]
[1672584146912,8.38991176,1195.1,1195.0,1.25488673]
[1672584148173,3.99684033,1195.1,1195.0,1.25488673]
[1672584149956,3.99684033,1195.1,1195.0,3.13749784]
[1672584153213,3.99684033,1195.1,1195.0,1.25488673]
[1672584157320,3.99684033,1195.1,1195.0,3.13749784]
[1672584167624,4.39307143,1195.2,1195.0,3.13749784]
[1672584167938,7.89051144,1195.3,1195.1,4.75488673]
[1672584168152,7.89051144,1195.3,1195.1,3.5]
[1672584169612,7.89051144,1195.3,1195.1,4.75488673]
[1672584170041,7.89051144,1195.3,1195.1,3.5]
[1672584170355,4.39307143,1195.2,1195.1,3.5]
[1672584187069,4.38552007,1195.2,1195.1,3.5]
[1672584211575,4.38552007,1195.2,1195.1,4.75488673]
[1672584217043,12.90204305,1195.3,1195.1,4.75488673]
[1672584217468,4.38552007,1195.2,1195.1,4.75488673]
[1672584220409,12.90204305,1195.3,1195.1,4.75488673]
[1672584228814,7.88296008,1195.3,1195.1,4.75488673]
[1672584234497,12.90204305,1195.3,1195.1,4.75488673]
[1672584239541,7.88296008,1195.3,1195.1,4.75488673]
[1672584240699,12.90204305,1195.3,1195.1,4.75488673]
[1672584241223,7.88296008,1195.3,1195.1,4.75488673]
[1672584242801,12.90204305,1195.3,1195.1,4.75488673]
[1672584244060,7.88296008,1195.3,1195.1,4.75488673]
[1672584244904,12.90204305,1195.3,1195.1,4.75488673]
[1672584245120,7.88296008,1195.3,1195.1,4.75488673]
[1672584245644,7.88296008,1195.3,1195.1,6.63749784]
[1672584246060,7.88296008,1195.3,1195.2,1.25488673]
[1672584246269,7.88296008,1195.3,1195.1,6.63749784]
[1672584246479,7.88296008,1195.3,1195.2,1.25488673]
[1672584246690,7.88296008,1195.3,1195.1,6.63749784]
[1672584260148,3.49744001,1195.3,1195.2,1.25488673]
[1672584260354,3.99744001,1195.3,1195.2,1.25488673]
[1672584260882,3.99744001,1195.3,1195.1,6.63749784]
[1672584264573,3.99744001,1195.3,1195.1,6.63330644]
[1672584265722,3.99744001,1195.3,1195.2,1.25488673]
[1672584266247,3.99744001,1195.3,1195.1,6.63330644]
[1672584268884,3.99744001,1195.3,1195.2,1.25488673]
[1672584269217,3.99744001,1195.3,1195.1,6.63330644]
[1672584269524,3.99744001,1195.3,1195.2,1.25488673]
[1672584273432,3.99744001,1195.3,1195.1,6.63330644]
[1672584274259,3.99744001,1195.3,1195.2,1.25488673]
[1672584274789,3.99744001,1195.3,1195.1,6.63330644]
[1672584278996,3.99744001,1195.3,1195.2,1.25488673]
[1672584280575,3.99744001,1195.3,1195.1,3.4958086]
[1672584280779,3.99744001,1195.3,1195.1,4.75069533]
[1672584280780,13.40204305,1195.3,1195.1,4.75069533]
[1672584281094,4.38552007,1195.2,1195.1,3.4958086]
[1672584286239,13.40204305,1195.3,1195.1,3.4958086]
[1672584287496,4.38552007,1195.2,1195.1,3.4958086]